bitfinex/quotes_ETHUSD_20240618
["timestamp","ask_amount","ask_price","bid_price","bid_amount"]
[1718678545852,4.23351879,3433.3,3433.2,0.05420769]
[1718678546158,7.23351879,3433.3,3432.7,2.91315]
[1718678546491,2.11675219,3433.2,3432.7,3.8103076]
[1718678546782,2.11675219,3433.1,3432.7,2.91315]
[1718678547008,2.11675219,3433.0,3432.7,2.91315]
[1718678547166,2.11675219,3432.9,3432.6,2.91324]
[1718678547375,2.11675219,3432.8,3432.6,2.91324]
[1718678547691,3.0,3433.4,3432.6,2.91324]
[1718678548015,4.23354777,3433.3,3432.6,2.91324]
[1718678548288,4.23354777,3433.2,3432.4,2.3295]
[1718678548490,7.23354777,3433.1,3432.1,2.91361]
[1718678548687,4.23354777,3433.0,3432.1,2.91361]
[1718678548891,4.23354777,3432.9,3432.1,3.730584]
[1718678549191,2.11680318,3432.8,3432.3,2.91346]
[1718678549393,2.11680318,3432.7,3432.0,5.25611]
[1718678549689,2.11680318,3432.6,3432.1,2.96602689]
[1718678549896,2.11680318,3432.5,3432.1,0.05237689]
[1718678550197,2.11680318,3432.4,3432.1,0.05237689]
[1718678550495,2.11680318,3432.3,3431.9,2.91376]
[1718678550654,2.11680318,3432.2,3431.9,2.91376]
[1718678550858,2.078,3432.8,3431.9,2.91376]
[1718678551084,4.23441035,3432.7,3431.9,2.91376]
[1718678551293,2.11717494,3432.6,3431.7,2.91393]
[1718678551586,7.23441035,3432.6,3431.8,2.91392]
[1718678551788,4.23441035,3432.5,3431.9,2.91383]
[1718678552091,2.078,3432.8,3431.9,2.91383]
[1718678552092,2.11723541,3432.4,3431.9,2.91383]
[1718678552389,2.11723541,3432.3,3431.6,2.3037]
[1718678552567,2.2879,3432.5,3431.4,2.91426]
[1718678552914,4.23458513,3432.4,3431.5,2.91417]
[1718678553054,2.11723541,3432.3,3431.6,2.91407]
[1718678553259,2.11723541,3432.2,3431.4,2.91426]
[1718678553600,3.0,3432.7,3431.8,2.91385]
[1718678553797,2.078,3432.8,3431.8,2.91385]
[1718678553798,4.23455729,3432.6,3431.8,2.91385]
[1718678553969,4.23455729,3432.5,3431.8,2.91385]
[1718678554175,2.078,3432.8,3431.8,2.91385]
[1718678554372,4.78464608,3432.7,3431.5,2.9141]
[1718678554576,7.23464608,3432.6,3431.7,2.914]
[1718678554904,4.23464608,3432.5,3431.7,2.914]
[1718678555099,4.23464608,3432.5,3431.5,3.49713065]
[1718678555100,0.55,3432.4,3431.5,0.58303065]
[1718678555389,2.11739319,3432.3,3431.2,2.453]
[1718678555574,3.0,3432.7,3431.3,2.91434]
[1718678555575,2.11739319,3432.2,3431.3,2.91434]
[1718678555771,2.078,3432.8,3431.7,2.91395]
[1718678555960,4.78469785,3432.7,3431.7,2.91395]
[1718678556161,7.23469785,3432.6,3431.7,2.91395]
[1718678556382,4.23469785,3432.5,3431.8,0.05274482]
[1718678556580,5.11738155,3432.4,3431.8,0.05274482]
[1718678556781,2.11738155,3432.3,3431.8,0.05274482]
[1718678557003,2.11738155,3432.2,3431.5,2.91411]
[1718678557266,2.11738155,3432.1,3431.5,2.91411]
[1718678557466,3.0,3432.6,3431.6,0.05313652]
[1718678557686,4.3285,3432.4,3431.6,0.05313652]
[1718678557996,4.3285,3432.4,3431.3,2.91434]
[1718678557997,7.78479297,3432.3,3431.3,2.91434]
[1718678558201,4.23500482,3432.2,3431.7,0.05313652]
[1718678558496,5.1174355,3432.1,3431.8,0.05320381]
[1718678558674,2.1174355,3432.0,3431.2,5.36742]
[1718678558870,2.1174355,3431.9,3431.3,2.91434]
[1718678559199,3.55,3432.3,3431.4,2.91425]
[1718678559537,4.23514473,3432.2,3431.4,2.91425]
[1718678559681,5.11759183,3432.1,3431.3,2.91434]
[1718678559863,2.11759183,3432.0,3431.3,2.91434]
[1718678560209,2.11759183,3431.9,3431.3,2.91434]
[1718678560360,3.55,3432.3,3431.3,2.91434]
[1718678560568,4.23526552,3432.2,3431.3,2.91434]
[1718678560774,5.11767019,3432.1,3431.3,2.91434]
[1718678561078,5.11767019,3432.0,3431.1,2.91444]
[1718678561383,2.11767019,3431.9,3431.1,2.91444]
[1718678561576,2.11767019,3431.8,3431.1,2.91444]
[1718678561778,3.55,3432.3,3431.1,2.91444]
[1718678562010,2.1177744,3432.2,3431.1,2.91444]
[1718678562308,0.55,3432.1,3431.1,2.91444]
[1718678562592,2.1177744,3432.0,3431.0,2.91458]
[1718678562795,5.1177744,3432.0,3431.0,2.91458]
[1718678563000,2.1177744,3431.9,3431.0,2.91458]
[1718678563324,5.1177744,3431.9,3431.1,0.0533661]
[1718678563475,2.1177744,3431.8,3431.1,0.0533661]
[1718678563867,3.0,3432.0,3431.1,0.0533661]
[1718678564199,2.66781488,3431.9,3431.1,0.0533661]
[1718678564505,2.078,3431.6,3431.1,0.0533661]
[1718678564796,2.11781488,3431.5,3430.4,2.399]
[1718678564996,2.66781488,3431.5,3431.2,0.05183485]
[1718678565197,2.11781488,3431.4,3430.4,2.399]
[1718678565368,0.55,3431.3,3430.4,2.399]
[1718678565562,3.55,3431.3,3430.5,0.05192591]
[1718678566000,0.55,3431.3,3430.4,2.399]
[1718678566166,2.078,3431.2,3430.6,0.05192591]
[1718678566367,0.55,3431.1,3430.0,5.32542]
[1718678566593,0.55,3431.1,3430.7,0.05208035]
[1718678566594,3.55,3431.1,3430.7,0.05208035]
[1718678566766,3.55,3431.1,3430.1,2.91535]
[1718678566963,0.2912,3430.9,3430.8,0.05208035]
[1718678567199,5.078,3430.9,3429.2,2.9161]
[1718678567394,0.55,3430.8,3428.9,2.41]
[1718678567594,0.55,3430.8,3429.3,0.04882224]
[1718678567835,0.55,3430.8,3429.0,2.91629]
[1718678568207,2.078,3429.9,3429.1,0.04882224]
[1718678568412,2.80348659,3430.7,3429.1,2.96503224]
[1718678568767,3.3412,3430.9,3430.2,2.91526]
[1718678568768,0.05,3430.9,3430.2,2.91526]
[1718678569056,0.50439023,3431.7,3430.9,2.91463]
[1718678569212,2.078,3432.0,3430.8,2.91474]
[1718678569410,2.078,3432.0,3430.6,2.91489]
[1718678569729,2.078,3431.6,3430.7,0.04882224]
[1718678569928,2.078,3431.6,3430.1,2.91535]
[1718678570136,2.078,3431.2,3430.8,0.04882224]
[1718678570427,2.078,3431.2,3430.1,2.91535]
[1718678570645,2.078,3431.2,3430.5,2.915]
[1718678570797,3.0,3431.6,3430.6,0.2915]
[1718678571002,3.0,3431.6,3430.7,2.91481]
[1718678571203,2.078,3432.1,3430.9,2.91465]
[1718678571637,5.078,3432.1,3430.9,2.91465]
[1718678571945,5.078,3432.1,3431.0,0.04882224]
[1718678572507,2.078,3431.7,3431.0,0.04882224]
[1718678572702,2.078,3431.7,3430.7,2.4148]
[1718678572925,2.078,3431.7,3431.1,0.04882224]
[1718678573126,2.078,3431.7,3430.7,2.4148]
[1718678573343,2.078,3431.7,3431.2,0.04882224]
[1718678573506,0.55,3431.6,3430.5,0.05829369]
[1718678573838,3.55,3431.6,3430.7,2.91484]
[1718678574206,3.55,3431.6,3430.8,0.04882224]
[1718678575464,3.0,3431.6,3431.0,2.91457]
[1718678575668,5.64358,3432.2,3431.0,2.91457]
[1718678575820,0.55,3432.1,3431.0,2.91457]
[1718678576169,3.55,3432.1,3431.1,0.04878268]
[1718678576671,3.55,3432.1,3431.2,0.04878268]
[1718678576961,3.0,3432.1,3431.0,2.97281918]
[1718678577174,2.078,3432.2,3431.3,0.04878268]
[1718678577364,2.078,3432.2,3431.1,0.29728192]
[1718678577365,2.078,3432.2,3431.1,2.91451]
[1718678577569,2.078,3432.2,3431.4,0.04878268]
[1718678577881,3.0,3432.4,3431.5,0.04878268]
[1718678578055,2.078,3432.3,3431.2,2.91442]
[1718678578637,2.078,3432.3,3431.3,0.04878268]
[1718678579147,2.078,3431.9,3430.6,2.91493]
[1718678579456,0.55,3431.8,3430.7,2.91485]
[1718678579650,3.55,3431.8,3430.5,2.2904]
[1718678579963,0.55,3431.8,3430.8,2.91474]
[1718678580170,3.0,3431.7,3430.9,2.91468]
[1718678580352,3.55,3431.8,3430.9,2.91468]
[1718678580673,3.55,3431.8,3431.1,2.9145]
[1718678580674,3.0,3431.8,3431.1,2.9145]
[1718678580882,2.078,3432.3,3431.1,2.91444]
[1718678581455,2.078,3432.3,3431.4,2.91425]
[1718678581688,2.078,3432.3,3430.9,2.91465]
[1718678581857,2.078,3432.3,3430.9,3.497605]
[1718678582063,2.078,3431.9,3431.0,2.91454]
[1718678582272,2.078,3431.9,3431.0,2.96313681]
[1718678582478,2.078,3431.9,3431.1,2.9145]
[1718678582976,2.078,3431.9,3431.2,0.04859681]
[1718678583284,2.078,3431.5,3431.2,0.04859681]
[1718678583488,2.078,3431.5,3430.3,2.91519]
[1718678583695,0.55,3431.4,3431.3,0.04859681]
[1718678583867,0.55,3431.4,3430.1,2.91535]
[1718678584202,3.55,3431.4,3431.3,0.04859681]
[1718678584400,0.55,3431.4,3430.2,2.91527]
[1718678584603,3.55,3431.4,3430.2,2.91527]
[1718678584897,3.55,3431.4,3430.3,0.04859681]
[1718678586197,2.078,3431.1,3430.3,0.04859681]
[1718678586362,0.55,3431.0,3430.3,0.04859681]
[1718678586569,3.55,3431.0,3429.6,2.91577]
[1718678587081,3.55,3431.0,3429.7,0.04859681]
[1718678587818,3.55,3431.0,3429.7,2.96428681]
[1718678588369,4.4298,3430.7,3429.7,0.04859681]
[1718678588566,3.0,3430.6,3429.7,0.04859681]
[1718678588768,3.0,3430.6,3429.4,2.91588]
[1718678589004,3.0,3430.6,3429.8,0.04901613]
[1718678589176,0.55,3430.5,3429.4,2.91588]
[1718678589698,0.55,3430.5,3429.5,0.04901613]
[1718678590994,3.0,3430.6,3429.5,0.04901613]
[1718678591393,2.078,3430.3,3429.5,0.04901613]
[1718678591794,0.55,3430.2,3429.0,2.91629]
[1718678592000,3.55,3430.2,3429.6,0.04964124]
[1718678592198,3.55,3430.2,3429.0,2.91629]
[1718678592375,3.55,3430.2,3429.7,0.04964124]
[1718678592572,3.55,3430.2,3429.1,2.9162]
[1718678592775,3.55,3430.2,3429.8,0.04964124]
[1718678593010,3.55,3430.2,3429.1,2.9162]
[1718678593307,3.55,3430.2,3429.2,0.04967291]
[1718678594896,3.55,3430.2,3428.8,2.91645]
[1718678595097,3.55,3430.2,3429.3,0.04973624]
[1718678595414,3.55,3430.2,3428.6,5.23646]
[1718678595415,3.55,3430.2,3428.7,2.91654]
[1718678595611,2.078,3429.9,3429.4,0.04975999]
[1718678595796,2.078,3429.9,3428.8,2.91646]
[1718678595797,0.55,3429.8,3428.8,2.91646]
[1718678596104,3.0,3429.8,3429.1,2.91616]
[1718678596316,3.0,3429.8,3429.2,2.91606]
[1718678596491,3.0,3430.6,3429.3,2.97433905]
[1718678596813,4.4298,3430.7,3429.3,2.97433905]
[1718678597013,4.4298,3430.7,3429.4,0.04979166]
[1718678597314,3.0,3430.6,3429.5,2.91587]
[1718678597812,3.0,3430.6,3429.6,0.04979166]
[1718678598180,0.55,3430.5,3429.6,0.04979166]
[1718678600697,0.55,3430.5,3429.4,2.97426169]
[1718678600925,0.55,3430.5,3429.7,0.04958892]
[1718678601117,0.55,3430.5,3429.4,2.97426169]
[1718678601294,0.55,3430.5,3429.8,0.04958892]
[1718678601497,0.55,3430.5,3429.4,2.97426169]
[1718678601698,0.55,3430.5,3429.9,0.04958892]
[1718678601909,0.55,3430.5,3429.4,2.97426169]
[1718678602109,0.55,3430.5,3430.0,0.04948996]
[1718678602321,0.55,3430.5,3429.4,2.97426169]
[1718678602537,0.55,3430.5,3430.1,0.04948996]
[1718678602823,0.55,3430.5,3429.4,2.97426169]
[1718678603039,0.55,3430.5,3430.2,0.04948996]
[1718678603221,0.55,3430.5,3429.4,2.91595]
[1718678603621,0.55,3430.5,3429.5,0.04948996]
[1718678604155,2.078,3430.3,3429.5,0.04948996]
[1718678604427,0.55,3430.2,3428.8,2.91644]
[1718678604724,3.55,3430.2,3428.9,3.78116184]
[1718678607431,3.55,3430.2,3428.9,2.96587184]
[1718678607830,2.078,3429.9,3428.9,2.96587184]
[1718678608157,3.039,3429.8,3428.9,0.04950184]
[1718678608308,3.039,3429.8,3428.5,2.91671]
[1718678608507,3.0,3429.7,3429.0,0.04753571]
[1718678608745,0.55,3429.6,3429.0,0.04753571]
[1718678608903,0.55,3429.6,3429.1,0.04753571]
[1718678609104,0.55,3429.6,3428.5,2.91671]
[1718678609304,0.55,3429.6,3429.2,0.04753571]
[1718678609505,0.55,3429.6,3428.3,2.91681]
[1718678609759,0.55,3429.6,3429.3,0.04753571]
[1718678609909,0.55,3429.6,3428.6,2.91664]
[1718678610111,0.55,3429.6,3429.4,0.04753571]
[1718678610309,0.55,3429.6,3428.6,2.91664]
[1718678610503,0.55,3429.6,3429.5,0.04753571]
[1718678610705,0.55,3429.6,3428.6,2.91664]
[1718678610903,0.55,3429.6,3429.5,0.04753571]
[1718678611140,0.55,3429.6,3428.6,2.91664]
[1718678611303,0.55,3429.6,3429.5,0.04753571]
[1718678611504,0.55,3429.6,3428.7,2.91653]
[1718678611707,0.55,3429.6,3429.5,0.04753571]
[1718678611941,0.55,3429.6,3428.4,2.9168]
[1718678612120,0.55,3429.6,3429.5,0.04753571]
[1718678612309,2.628,3429.6,3428.4,2.9168]
[1718678612508,3.0,3429.5,3428.4,2.9168]
[1718678612731,0.55,3429.4,3428.5,2.91671]
[1718678613410,2.91647,3428.9,3428.5,2.91671]
[1718678614125,2.91647,3428.9,3428.3,2.91688]
[1718678615541,2.3431,3429.1,3428.3,2.91688]
[1718678615745,5.3431,3429.1,3428.3,2.91688]
[1718678616144,5.3431,3429.1,3428.4,2.91679]
[1718678617071,3.0,3429.1,3428.4,3.500167]
[1718678617250,2.078,3429.2,3428.4,3.500167]
[1718678618029,0.50462706,3429.7,3428.5,2.9750316]
[1718678618234,0.50462706,3429.7,3428.4,3.025577]
[1718678618235,3.0,3429.7,3429.2,2.91612]
[1718678618464,3.0,3429.7,3429.0,2.91629]
[1718678618775,3.0,3429.9,3429.0,2.91629]
[1718678618932,2.078,3430.0,3428.6,2.91659]
[1718678618933,5.078,3430.0,3428.6,2.91659]
[1718678619136,5.078,3430.0,3428.8,2.91646]
[1718678619737,0.55,3429.9,3428.8,2.91646]
[1718678619936,3.55,3429.9,3428.8,2.91646]
[1718678620173,3.55,3429.9,3428.6,2.91659]
[1718678620174,2.3255,3429.5,3428.7,2.91655]
[1718678620475,5.3255,3429.5,3428.7,2.91655]
[1718678621077,2.078,3429.2,3428.3,2.91685]
[1718678623620,2.11947072,3429.1,3428.0,2.91713]
[1718678623901,2.66947072,3429.1,3428.1,2.91704]
[1718678624051,3.0,3429.0,3428.1,2.91704]
[1718678624685,0.55,3429.1,3428.2,0.04626331]
[1718678625205,3.0,3429.2,3428.2,0.05833658]
[1718678625489,2.11944409,3429.1,3428.3,0.0447212]
[1718678625653,2.11944409,3429.0,3428.3,0.0447212]
[1718678625846,3.0,3429.2,3428.3,0.0447212]
[1718678626051,2.11944199,3429.1,3428.4,2.9168]
[1718678626256,3.0,3429.2,3428.4,2.9168]
[1718678626590,2.1194269,3429.1,3428.5,0.0447212]
[1718678626887,3.0,3429.2,3428.5,0.0447212]
[1718678627091,2.11942649,3429.1,3428.5,0.0447212]
[1718678627431,3.0,3429.2,3428.5,0.0447212]
[1718678627596,2.11943662,3429.1,3428.5,0.0447212]
[1718678627755,3.0,3429.2,3428.7,2.91655]
[1718678628090,3.0,3429.3,3428.0,2.91714]
[1718678628293,2.11936172,3429.2,3428.8,0.0447212]
[1718678628498,2.4391,3429.6,3427.7,2.4425]
[1718678628649,2.4391,3429.6,3428.1,2.91706]
[1718678628650,2.078,3429.3,3428.1,2.91706]
[1718678628993,2.11937036,3429.2,3428.3,2.91689]
[1718678629368,2.11937036,3429.2,3427.8,2.91732]
[1718678629561,2.078,3428.9,3428.4,0.0447212]
[1718678629796,2.078,3428.9,3427.8,2.91732]
[1718678629797,2.11937036,3428.8,3427.8,2.91732]
[1718678629995,2.11937036,3428.8,3428.5,0.0447212]
[1718678630300,2.4391,3428.7,3427.6,2.91746]
[1718678630485,2.11937036,3428.6,3427.6,2.91746]
[1718678630654,2.11937036,3428.6,3427.5,2.91757]
[1718678631199,2.628,3428.5,3427.3,2.91773]
[1718678631400,2.11937036,3428.4,3427.3,2.91773]
[1718678631565,5.11937036,3428.4,3427.3,2.91773]
[1718678631765,2.11937036,3428.3,3427.3,2.91773]
[1718678631967,2.11937036,3428.2,3427.3,2.91773]
[1718678632166,3.0,3428.4,3427.3,2.91773]
[1718678632367,2.11990912,3428.3,3427.3,2.91773]
[1718678632592,2.11990912,3428.3,3427.1,2.9179]
[1718678632794,2.11990912,3428.3,3427.4,0.0447212]
[1718678632995,2.11990912,3428.3,3427.2,2.91783]
[1718678633193,2.11990912,3428.3,3426.8,5.34726]
[1718678633194,2.078,3428.1,3427.5,0.0447212]
[1718678633397,3.0,3428.4,3427.3,2.9604272]
[1718678633706,2.11993046,3428.3,3427.4,0.0426872]
[1718678634311,2.11993046,3428.3,3427.4,2.9603272]
[1718678635076,2.11993046,3428.3,3427.7,2.9174]
[1718678635299,2.11993046,3428.3,3427.8,2.91732]
[1718678635507,2.11993046,3428.3,3427.8,2.9600072]
[1718678635668,3.0,3428.6,3427.8,0.63043592]
[1718678635874,2.11984494,3428.5,3427.8,0.0426872]
[1718678636178,3.0,3428.8,3428.0,2.91715]
[1718678636400,2.11977761,3428.7,3428.0,2.91715]
[1718678636714,2.2834,3428.4,3428.1,0.0430433]
[1718678636898,2.2834,3428.4,3427.2,2.91783]
[1718678637105,2.11998525,3428.3,3428.2,0.0430433]
[1718678637436,5.11998525,3428.3,3427.3,2.91774]
[1718678637718,2.078,3428.1,3427.4,0.0430433]
[1718678637883,2.11998525,3428.0,3426.9,2.91806]
[1718678638214,3.0,3428.0,3427.4,2.91763]
[1718678638371,2.078,3428.2,3427.1,2.91784]
[1718678638572,2.12013396,3428.1,3427.2,2.91775]
[1718678638790,5.12013396,3428.1,3427.2,2.9608533]
[1718678639046,2.12013396,3428.0,3427.2,2.9608533]
[1718678639236,5.12013396,3428.0,3427.2,0.0430433]
[1718678639533,2.12013396,3427.9,3427.1,2.91786]
[1718678639733,2.12013396,3427.9,3427.5,2.91756]
[1718678640027,7.43,3428.8,3427.5,2.4109]
[1718678640204,2.078,3428.6,3427.6,2.91743]
[1718678640402,2.11994547,3428.5,3428.1,2.91701]
[1718678640596,4.5412,3429.0,3427.6,0.86846713]
[1718678640796,4.5412,3429.0,3428.3,2.91688]
[1718678640797,2.4632,3429.0,3428.3,2.91688]
[1718678640989,2.91,3429.2,3428.4,2.91679]
[1718678641215,2.91,3429.2,3428.4,2.96049785]
[1718678641728,2.91,3429.2,3428.6,2.91661]
[1718678641924,2.91,3429.2,3428.8,2.91644]
[1718678642118,2.91,3429.2,3428.8,2.91638]
[1718678642313,0.50464499,3429.4,3428.9,0.0434823]
[1718678642515,0.50464499,3429.4,3429.0,2.91627]
[1718678642697,3.01747436,3430.0,3429.0,2.9597523]
[1718678642698,0.50464499,3429.8,3429.0,2.9597523]
[1718678643025,3.01747436,3430.0,3429.3,2.91602]
[1718678643428,3.01747436,3430.0,3429.4,0.04333198]
[1718678644130,3.01747436,3430.0,3429.1,2.91615]
[1718678644342,3.01747436,3430.0,3429.5,0.04333198]
[1718678644493,3.01747436,3430.0,3429.1,2.91615]
[1718678644827,3.01747436,3430.0,3429.2,0.04320938]
[1718678645126,3.01747436,3430.0,3429.2,2.95931938]
[1718678645702,2.4616,3429.8,3429.2,0.04320938]
[1718678645892,2.078,3429.5,3427.8,2.4209]
[1718678646092,2.078,3429.5,3428.0,2.91712]
[1718678646302,0.55,3429.4,3428.1,2.91704]
[1718678646640,3.55,3429.4,3428.1,2.95813039]
[1718678646930,2.078,3428.7,3428.1,0.04109039]
[1718678647101,2.078,3428.7,3427.5,2.91756]
[1718678647304,0.55,3428.6,3427.5,2.91756]
[1718678647615,3.55,3428.6,3427.5,3.501088]
[1718678647919,0.55,3428.6,3427.6,0.04005147]
[1718678648237,3.55,3428.6,3427.6,0.04005147]
[1718678648598,3.0,3428.6,3427.8,2.9173]
[1718678648804,5.58273717,3429.2,3427.9,0.65165349]
[1718678649030,0.55,3429.1,3427.9,3.01584447]
[1718678649706,0.55,3429.1,3428.0,2.91713]
[1718678649960,0.55,3429.1,3428.0,2.95746967]
[1718678650639,2.078,3428.8,3428.0,0.04033967]
[1718678650857,0.55,3428.7,3428.0,0.04033967]
[1718678651004,0.55,3428.7,3427.4,2.91758]
[1718678651199,0.55,3428.7,3428.1,0.04024491]
[1718678651200,3.55,3428.7,3428.1,0.04024491]
[1718678651399,3.55,3428.7,3427.4,2.91758]
[1718678651614,3.55,3428.7,3428.2,0.04024491]
[1718678651818,2.078,3428.4,3426.8,2.91814]
[1718678652141,2.078,3428.4,3426.9,2.91808]
[1718678652300,0.55,3428.3,3426.9,0.09859957]
[1718678652506,3.55,3428.3,3427.2,2.91779]
[1718678652839,3.0,3428.3,3427.3,0.05834573]
[1718678653001,2.078,3428.4,3427.3,2.97607573]
[1718678653206,2.078,3428.4,3427.4,0.04024491]
[1718678653736,0.55,3428.3,3427.2,2.91782]
[1718678654048,3.55,3428.3,3427.5,0.04024491]
[1718678654249,3.55,3428.3,3426.6,2.91833]
[1718678654250,2.078,3428.0,3426.6,2.91833]
[1718678654548,2.078,3428.0,3426.7,0.291833]
[1718678654735,2.078,3428.0,3426.7,0.33207791]
[1718678654940,2.078,3428.0,3426.8,2.91816]
[1718678655151,2.078,3428.0,3426.9,2.91807]
[1718678655449,2.078,3427.2,3426.9,0.04024491]
[1718678655852,2.078,3427.2,3426.0,2.91884]
[1718678656355,2.9498,3427.1,3426.1,0.04024491]
[1718678656777,3.0,3427.0,3425.1,5.22957]
[1718678656921,2.078,3426.8,3426.2,0.04059244]
[1718678657122,5.078,3426.8,3426.2,0.04059244]
[1718678657340,0.55,3426.7,3426.2,0.04059244]
[1718678657651,0.55,3426.7,3425.5,2.91925]
[1718678657652,3.0,3426.7,3426.3,0.04094806]
[1718678657857,2.078,3426.8,3426.3,0.04094806]
[1718678658055,2.078,3426.8,3425.9,2.9189]
[1718678658254,2.078,3426.8,3426.4,0.04094806]
[1718678658421,2.078,3426.8,3425.7,2.91908]
[1718678658757,2.078,3426.8,3425.8,2.91901]
[1718678658960,2.078,3426.8,3425.8,2.95995806]
[1718678659174,2.078,3426.3,3425.8,0.04094806]
[1718678659458,2.078,3426.3,3425.1,5.22959]
[1718678659459,2.078,3426.3,3425.0,2.91968]
[1718678659966,2.078,3426.3,3425.1,2.95886088]
[1718678660259,2.078,3426.3,3425.1,0.03925088]
[1718678660444,0.55,3426.2,3425.1,0.03925088]
[1718678660647,2.078,3425.9,3424.9,2.91977]
[1718678660845,2.078,3425.5,3425.2,0.03925088]
[1718678661045,2.078,3425.5,3424.1,0.006]
[1718678661275,0.50500145,3426.1,3425.3,0.03937726]
[1718678661599,3.0,3426.5,3425.6,2.91912]
[1718678661739,3.0,3426.5,3425.8,2.919]
[1718678661943,7.43,3427.1,3426.3,2.91858]
[1718678662145,0.55497929,3427.4,3426.8,2.91815]
[1718678662340,0.05,3427.4,3426.9,2.91808]
[1718678662583,0.05,3427.4,3426.7,2.91819]
[1718678662755,7.93497929,3427.7,3427.0,0.03955897]
[1718678662756,7.43,3427.7,3427.0,0.03955897]
[1718678662950,7.43,3428.4,3427.3,2.91771]
[1718678663152,2.078,3428.1,3427.1,2.95742897]
[1718678663352,2.2881,3428.6,3427.2,2.97615931]
[1718678663581,2.2881,3428.6,3427.6,2.91747]
[1718678664177,2.2881,3428.6,3427.7,0.03955897]
[1718678664378,2.2881,3428.6,3427.4,2.91761]
[1718678664582,2.2881,3428.6,3427.8,0.03955897]
[1718678664758,5.2881,3428.6,3427.3,2.91768]
[1718678665085,5.5805,3428.6,3427.9,0.03955897]
[1718678665259,5.5805,3428.6,3426.2,2.3984]
[1718678665260,2.782,3428.2,3426.2,2.3984]
[1718678665585,3.0,3428.1,3426.8,2.91815]
[1718678665788,0.55,3428.0,3426.9,2.91803]
[1718678665956,3.0,3428.1,3427.0,0.05835708]
[1718678666152,3.0,3428.1,3427.0,0.09791605]
[1718678666386,3.0,3428.1,3427.0,0.39952265]
[1718678666965,3.0,3428.1,3427.0,0.34116557]
[1718678667164,3.0,3428.1,3427.0,0.03955897]
[1718678667480,3.0,3428.1,3427.1,2.91787]
[1718678668289,3.0,3428.1,3427.2,0.03955897]
[1718678668491,2.782,3427.5,3427.2,0.03955897]
[1718678668789,2.782,3427.5,3425.9,2.91891]
[1718678669089,3.55,3427.4,3427.3,0.03437322]
[1718678669256,3.55,3427.4,3425.4,2.9193]
[1718678669450,3.55,3427.4,3425.9,2.91892]
[1718678669682,5.8858,3427.4,3425.9,2.91892]
[1718678669981,5.8858,3427.4,3426.0,0.032303]
[1718678670192,5.8858,3427.4,3426.0,0.09067477]
[1718678670383,5.8858,3427.4,3426.0,0.032303]
[1718678670694,5.8858,3427.4,3425.7,2.91904]
[1718678670860,5.8858,3427.4,3426.1,2.91875]
[1718678671471,5.8858,3427.4,3425.9,2.91887]
[1718678671472,5.3358,3427.4,3426.5,2.91841]
[1718678671685,5.3358,3427.4,3426.3,2.91857]
[1718678671686,3.0,3427.3,3426.3,2.91857]
[1718678671988,2.3358,3427.4,3426.3,2.91857]
[1718678672153,2.3358,3427.4,3426.4,2.95102013]
[1718678673803,2.3358,3427.4,3426.4,0.03252013]
[1718678673970,2.3358,3427.4,3426.3,2.91858]
[1718678674155,0.55,3427.3,3426.0,2.91882]
[1718678674352,3.55,3427.3,3426.0,2.91882]
[1718678674668,3.55,3427.3,3426.1,0.03240958]
[1718678676383,3.55,3427.3,3425.8,2.91901]
[1718678676573,3.55,3427.3,3425.6,2.91912]
[1718678676911,3.55,3427.3,3425.9,0.0324767]
[1718678676912,3.85423125,3427.3,3425.9,0.0324767]
[1718678677215,2.80771517,3427.2,3426.0,0.0324767]
[1718678677373,2.782,3427.0,3425.4,2.91936]
[1718678677586,2.3503,3426.8,3426.1,0.0324767]
[1718678677772,2.782,3426.5,3426.1,0.0324767]
[1718678678111,3.0,3426.4,3425.1,2.91961]
[1718678678262,3.0,3426.4,3425.1,3.795532]
[1718678678621,3.0,3426.4,3425.5,2.91926]
[1718678678886,3.0,3426.4,3425.2,3.01036189]
[1718678678887,3.55,3426.7,3425.4,2.91935]
[1718678679190,3.0,3426.6,3425.6,0.03322297]
[1718678679394,3.0,3426.6,3425.5,2.91927]
[1718678679580,3.0,3426.7,3425.5,0.67547687]
[1718678679890,5.3503,3426.8,3425.7,2.91908]
[1718678680691,5.3503,3426.8,3425.8,0.03322297]
[1718678681758,0.55,3426.7,3425.4,2.91935]
[1718678681959,3.55,3426.7,3425.5,0.583884]
[1718678682156,3.55,3426.7,3425.5,0.61710697]
[1718678682396,3.55,3426.7,3425.5,0.03322297]
[1718678682694,3.55,3426.7,3424.9,2.91978]
[1718678683198,3.55,3426.7,3425.2,2.91947]
[1718678683397,3.55,3426.7,3425.5,2.91927]
[1718678683772,3.55,3426.7,3425.3,3.22055185]
[1718678683978,3.55,3426.7,3425.4,2.91936]
[1718678684277,3.55,3426.7,3425.5,0.03354285]
[1718678685112,2.782,3426.6,3425.5,0.03354285]
[1718678685315,2.3009,3426.4,3425.5,0.03354285]
[1718678685520,0.55,3426.3,3424.9,2.91974]
[1718678685875,3.55,3426.3,3425.0,0.0334994]
[1718678686889,3.55,3426.3,3425.1,0.0334994]
[1718678687315,2.12164405,3426.2,3424.7,3.461844]
[1718678687477,0.55,3426.1,3425.2,0.0334994]
[1718678687816,3.55,3426.1,3425.3,0.0334994]
[1718678688012,2.12169048,3426.0,3424.7,2.91994]
[1718678688224,2.12169048,3426.0,3424.8,0.0334994]